Cogmind - Beta 11 @@@ ROGUE MODE // 2022.04.19 @ 17:52:22 Player: ILikeVoltron Result: Destroyed by Y-45 Defender with Beam Rifle Performance ------------- Evolutions (1) 500 Regions Visited (2) 400 Robots Destroyed (31) 155 Value Destroyed (587) 587 Prototype IDs (0) 0 Alien Tech Used (0) 0 Bonus (11) 11 TOTAL SCORE: 1653 Bonus ------- High Alert Combat Kills 11 Cogmind --------- Core Integrity 0/400 Matter 270/300 Energy 99/100 System Corruption 1% Temperature Cool (9) Movement Core (50) Location -9/Materials Parts ------- > --- POWER (1) -------- (None) > --- PROPULSION (3) --- (None) > --- UTILITY (3) ------ (None) > --- WEAPON (2) ------- (None) > --- INVENTORY (5) ---- Ion Engine Ion Engine Large Storage Unit Light Assault Rifle Light Assault Rifle Peak State ------------ > --- POWER ------------ Ion Engine > --- PROPULSION ------- Aluminum Leg Aluminum Leg Wheel > --- UTILITY ---------- Improved Heat Sink Medium Storage Unit Targeting Computer > --- WEAPON ----------- Small Laser Particle Gun > --- INVENTORY -------- Ion Engine Medium Storage Unit Large Storage Unit Improved Terrain Scanner Light Armor Plating Medium Laser Light Assault Rifle Rocket Launcher [Rating: 13] Favorites ----------- Power Ion Engine Engine Ion Engine Propulsion Aluminum Leg Leg Aluminum Leg Wheel Wheel Utility Medium Storage Unit Device Improved Heat Sink Storage Medium Storage Unit Processor Targeting Computer Protection Light Armor Plating Weapon Small Laser Energy Gun Small Laser Launcher Rocket Launcher Build | -11 -10 -9 ------- Run | Scr Mat Mat Slots Evolved 2 | . . 2 Power . | . . . Propulsion 1 | . . 1 Utility 1 | . . 1 Weapon . | . . . Parts Attached 22 | . 8 14 Power 2 | . . 2 Engine 2 | . . 2 Core . | . . . Reactor . | . . . Propulsion 2 | . 1 1 Treads . | . . . Leg 1 | . 1 . Wheel 1 | . . 1 Hover . | . . . Flight . | . . . Utility 12 | . 5 7 Device 6 | . 3 3 Storage 2 | . 1 1 Processor 1 | . . 1 Hackware . | . . . Protection 3 | . 1 2 Artifact . | . . . Weapon 6 | . 2 4 Energy Gun 5 | . 2 3 Energy Cannon . | . . . Ballistic Gun . | . . . Ballistic Cannon . | . . . Launcher 1 | . . 1 Special Weapon . | . . . Impact Weapon . | . . . Slashing Weapon . | . . . Piercing Weapon . | . . . Special Melee Weapon . | . . . Unidentified Prototypes . | . . . Parts Lost 10 | . . 10 Power 1 | . . 1 Propulsion 3 | . . 3 Utility 2 | . . 2 Weapon 4 | . . 4 Highest Loss Streak 5 | . . 5 To Critical Strikes . | . . . Average Slot Usage (%) 91 | . 98 82 Engine 12 | . 14 9 Leg 22 | . 28 14 Wheel 3 | . . 8 Device 9 | . 11 8 Storage 12 | . 14 10 Processor 4 | . . 9 Protection 1 | . 1 1 Energy Gun 24 | . 28 18 Naked Turns 32 | . . 32 Heaviest Build 22 | 13 19 22 Greatest Support 20 | 20 20 20 Greatest Overweight (x) 6 | . . 6 Average Overweight (x) . | . . . Largest Inventory Capacity 15 | 8 10 15 Average Capacity 9 | 8 9 9 Most Carried 10 | 6 10 10 Average Carried 8 | 5 8 8 Final Capacity 10 | 8 10 5 Final Carried 10 | 6 10 5 Class Distribution -------------------- 90% | Mutant 9% | Scavenger-Mutant Dominant Class ---------------- Mutant | -10/Materials Mutant | -9/Materials Resources | -11 -10 -9 ----------- Run | Scr Mat Mat Matter Collected 385 | 200 80 105 Remotely . | . . . Salvage Created 813 | 76 368 369 Parts 56 | 2 25 29 Haulers Intercepted 1 | . . 1 Recyclers Shooed 3 | . 1 2 Parts Field Recycled . | . . . Retrieved Matter . | . . . Parts Self-Destructed . | . . . Prevented . | . . . Kills | -11 -10 -9 ------- Run | Scr Mat Mat Combat Hostiles Destroyed 19 | . 9 10 Guns 15 | . 9 6 AOE 2 | . . 2 Classes Destroyed 9 | 2 4 3 Worker 2 | . 2 . Builder 2 | . . 2 Tunneler 3 | 1 1 1 Hauler 1 | . . 1 Recycler 1 | 1 . . Watcher 3 | . 2 1 Swarmer 9 | . 5 4 Grunt 8 | . 4 4 Sentry 2 | . . 2 Best Kill Streak 7 | 2 6 7 Combat Bots Only 3 | . 3 3 Max Kills in Single Turn 3 | 1 1 3 Gunslinging . | . . . Exploded 1 | . . 1 Melee . | . . . Uniques/NPCs Destroyed . | . . . Combat | -11 -10 -9 -------- Run | Scr Mat Mat Damage Taken 1318 | . 284 1034 Core 440 | . 30 410 Absorbed by Shields . | . . . Core Remaining (%) 94 | 100 88 . Volleys Fired 81 | 4 39 38 Largest 2 | 2 2 2 Hottest 115 | 90 90 115 Shots Fired 148 | 8 77 63 Gun 145 | 8 77 60 Cannon . | . . . Launcher 3 | . . 3 Special . | . . . Kinetic . | . . . Thermal 145 | 8 77 60 Explosive 3 | . . 3 Electromagnetic . | . . . Robot Hit Streak 8 | 2 3 8 Robot Miss Streak 12 | 3 12 3 Penetration Max . | . . . Secondary Targets 1 | . 1 . Max Gunslinging Chain 1 | . 1 . Shots Hit Robots 75 | 4 32 39 Core Hits 44 | 3 19 22 Critical Kills . | . . . Critical Parts Destroyed . | . . . Critical Strikes 6 | 1 3 2 Burn 6 | 1 3 2 Melee Attacks . | . . . Impact . | . . . Slashing . | . . . Piercing . | . . . Sneak Attacks . | . . . Combat Hostiles . | . . . Follow-up Attacks . | . . . Damage Inflicted 1261 | 46 416 799 Guns 959 | 46 416 497 Cannons . | . . . Explosions 280 | . . 280 Melee . | . . . Ramming 22 | . . 22 Kinetic . | . . . Thermal 959 | 46 416 497 Explosive 280 | . . 280 Electromagnetic . | . . . Impact . | . . . Slashing . | . . . Piercing . | . . . Highest Corruption 1 | . . 1 Average Corruption 1 | . . 1 Corruption Purged . | . . . Corruption Blocked . | . . . Overload Shots . | . . . Overflow Damage . | . . . Projectiles . | . . . Explosions . | . . . Melee . | . . . Knockbacks . | . . . Impact . | . . . Kinetic . | . . . Secondary . | . . . Self-Inflicted Damage 11 | . . 11 Shots . | . . . Rammed 2 | . . 2 Targets Rammed 2 | . . 2 Kicked . | . . . Crushed . | . . . Highest Temperature 346 | 120 222 346 Average Temperature 106 | 51 104 119 Received Heat Transfer 384 | . 66 318 Effects 3 | . . 3 Interference 3 | . . 3 Siege Activations . | . . . Robots Corrupted . | . . . Combat Hostiles . | . . . Parts Fried . | . . . Impact Corruptions . | . . . Robots Melted 2 | . . 2 Combat Hostiles 2 | . . 2 Parts Melted 10 | . 2 8 Heat Transferred 2861 | 198 1301 1362 Parts Sabotaged . | . . . Parts Stolen . | . . . Parts Stripped . | . . . Power Chain Reactions . | . . . Missiles Intercepted . | . . . Alert | -11 -10 -9 ------- Run | Scr Mat Mat Peak Influence 478 | 10 271 478 Initial 35 | . 6 35 Average 144 | 7 118 194 Maximum Alert Level 2 | . 1 2 Low Security (%) 76 | 100 89 57 Level 1 15 | . 10 24 Level 2 7 | . . 18 Level 3 . | . . . Level 4 . | . . . Level 5 . | . . . High Security . | . . . Max Security . | . . . Squads Dispatched . | . . . Investigation . | . . . Extermination . | . . . Reinforcement . | . . . Assault . | . . . Garrison . | . . . Intercept . | . . . Searches Triggered . | . . . Construction Impeded . | . . . Haulers Reinforced . | . . . Active Scanning Responses . | . . . Cargo Convoy Interrupts . | . . . Stealth | -11 -10 -9 --------- Run | Scr Mat Mat Distress Signals 3 | . 3 . Communications Jammed . | . . . Distress Signals . | . . . Times Spotted 33 | . 15 18 Peak Tracking Total 7 | . 3 7 Tactical Retreats 1 | . . 1 Traps | -11 -10 -9 ------- Run | Scr Mat Mat Traps Triggered . | . . . Indirectly . | . . . Trap Hack Attempts . | . . . Triggered . | . . . Disarmed 3 | . 3 . Reprogrammed . | . . . Reused . | . . . Traps Extracted . | . . . Installed . | . . . Triggered . | . . . Machines | -11 -10 -9 ---------- Run | Scr Mat Mat Machines Disabled 2 | . . 2 Max in Single Turn 2 | . . 2 Machines Sabotaged . | . . . Garrisons Compromised . | . . . Overloaded Fab Kills . | . . . Hacking | -11 -10 -9 --------- Run | Scr Mat Mat Machines Accessed 7 | . 6 1 Terminals 6 | . 5 1 Fabricators . | . . . Repair Stations . | . . . Recycling Units 1 | . 1 . Scanalyzers . | . . . Garrison Access . | . . . Total Hacks 18 | . 16 2 Successful 12 | . 11 1 Failed 6 | . 5 1 Catastrophic . | . . . Database Lockouts . | . . . Manual 10 | . 10 . Terminals 17 | . 15 2 Fabricators . | . . . Repair Stations . | . . . Recycling Units 1 | . 1 . Scanalyzers . | . . . Garrison Access . | . . . Terminal Hacks 6 | . 5 1 Branch Access Points 1 | . . 1 Locate Traps 2 | . 2 . Disarm Traps 1 | . 1 . Transport Status 1 | . 1 . Zone Layout 1 | . 1 . Fabricator Hacks . | . . . Repair Station Hacks . | . . . Recycling Unit Hacks 1 | . 1 . Report Inventory 1 | . 1 . Scanalyzer . | . . . Garrison Access Hacks . | . . . Unauthorized Hacks 5 | . 5 . Terminals 5 | . 5 . Track 1 | . 1 . Botnet 4 | . 4 . Fabricators . | . . . Repair Stations . | . . . Recycling Units . | . . . Scanalyzers . | . . . Garrison Access . | . . . Data Cores Recovered . | . . . Used . | . . . Hacking Detections 4 | . 4 . Full Trace Events . | . . . Feedback Events . | . . . Feedback Blocked . | . . . Robot Schematics Acquired . | . . . Robots Built . | . . . Authchips . | . . . Time . | . . . Total Robot Build Rating . | . . . Part Schematics Acquired . | . . . Parts Built . | . . . Authchips . | . . . Time . | . . . Total Part Build Rating . | . . . Parts Repaired . | . . . Time . | . . . Parts Recycled . | . . . Recycled Matter . | . . . Retrieved Matter . | . . . Retrieved Components . | . . . Parts Scanalyzed . | . . . Part Schematics Acquired . | . . . Parts Damaged . | . . . Bothacking | -11 -10 -9 ------------ Run | Scr Mat Mat Used RIF Installer . | . . . Robots Hacked . | . . . Non-combat . | . . . Combat . | . . . Robot Hacks Applied . | . . . Relay Couplers Released . | . . . Fabnet Peak Effective % . | . . . Robots Rewired . | . . . Allies Hacked . | . . . Hacks Repelled . | . . . Allies | -11 -10 -9 -------- Run | Scr Mat Mat Total Allies . | . . . Largest Group . | . . . Highest-Rated Group . | . . . Highest-Rated Ally . | . . . Total Orders . | . . . Ally Attacks . | . . . Total Damage . | . . . Kills . | . . . Allies Corrupted . | . . . Allies Melted . | . . . Intel | -11 -10 -9 ------- Run | Scr Mat Mat Robot Analysis Total . | . . . Derelict Logs Recovered . | . . . Drone Launches . | . . . Drone Recoveries . | . . . Exploration | -11 -10 -9 ------------- Run | Scr Mat Mat Turns Passed 867 | 32 486 349 Spaces Moved 480 | 16 284 180 Core 65 | . . 65 Treads . | . . . Legs 415 | 16 284 115 Wheels . | . . . Hover . | . . . Flight . | . . . Fastest Speed 50 | 120 120 50 Average Speed 118 | 120 120 116 Slowest Speed 350 | 120 120 350 Overloaded Moves . | . . . Propulsion Burnouts . | . . . Robots Hopped . | . . . Cave-ins Triggered . | . . . Exploration Rate (%) 24 | 3 51 19 Regions Visited 2 Branch Regions . Pre-discovered Areas . | . . . Known Exits Taken . | . . . Unknown Exits Taken 2 | 1 1 . Scrap Searched . | . . . Spaces Dug . | . . . Terrain Destroyed 56 | . . 56 Melee . | . . . Projectile . | . . . AOE 56 | . . 56 Terrain Rammed . | . . . Walls Destroyed . | . . . Machines Disabled . | . . . Actions | -11 -10 -9 --------- Run | Scr Mat Mat Total 627 | 21 354 252 Wait 25 | . 8 17 Move 478 | 15 283 180 Hop . | . . . Pick Up 10 | 1 8 1 Fast Attach 1 | . 1 . Attach 6 | . . 6 Detach . | . . . Swap 15 | . 7 8 Drop 9 | 1 8 . Fire 81 | 4 39 38 Melee . | . . . Ram 2 | . . 2 Kick . | . . . Crush . | . . . Escape Stasis . | . . . Rewire . | . . . Trap . | . . . Miscellaneous . | . . . Route ------- -11/Scrapyard -10/Materials -9/Materials (discovered 1 exit: Min) History --------- Turn | Location | Event 14 | -11/Scrapyard | Discovered new exit (range 3) 33 | -11/Scrapyard | Entered Materials 321 | -10/Materials | Build established: Mutant 477 | -10/Materials | Discovered new exit (range 16) 519 | -10/Materials | Entered another Materials area 519 | -9/Materials | Evolved 2 slots: Propulsion x1, Utility x1 762 | -9/Materials | Identified exit to Mines 826 | -9/Materials | Core integrity fell below 50% 836 | -9/Materials | Released all parts (3) 842 | -9/Materials | Core integrity fell below 20% 866 | -9/Materials | Lost 5 parts (1p4w) 868 | -9/Materials | Destroyed by Y-45 Defender with Beam Rifle Last Messages --------------- 00828_ U-05 Engineer lays Concrete. 00828_ Melted Broken Imp. Ion Engine. 00828_ Y-45 Defender critical meltdown. 00828_ Heat Sink melted. 00829_ Particle Gun destroyed. 00829_ U-05 Engineer lays Concrete. 00831_ U-05 Engineer builds a Wall. 00832_ Sml. Laser destroyed. 00835_ Med. Laser destroyed. 00835_ U-05 Engineer lays Concrete. 00836_ Released Med. Storage Unit. 00836_ Released Targeting Computer. 00836_ Released Imp. Heat Sink. 00837_ U-05 Engineer builds a Wall. 00838_ R-06 Scavenger collects Prototype Energy Gun. 00841_ Slammed into K-01 Serf. 00841_ Destabilizing: System corrupted (+1). 00841_ R-06 Scavenger collects Heat Sink. 00846_ Slammed into K-01 Serf. 00846_ Destabilizing: Core damaged (-16). Map ----- +----------------------------------------------------+ | ?????????????????????????????? | | ?????????????????????????????? | | ?????????????????????????????? | | ?????????????????????????????? | | ?????????????????????????????? | | ?????????????????????????????? | | ?????????????????????????????? | | ?????????????????????????????? | | ?????????????????????????????? | | ?????????????????????????????? | | ?????????????????????????????? | | ?????????????????????????????? | | ?????????????????????????????? | | ????######???????????????????? | | ???? #???????????????????? | | ???? #???????????????????? | | ???? T r ???????????????????? | | ???? ????????????????????? | | ???? ????????????????????? | | ????# #????????????????????? | | ????# #????????????????????? | | ????# #????????????????????? | | ????# +????????????????????? | | ????# #????????????????????? | | ????# #????????????????????? | | ???##@ ##???????????????????? | | ???# #???????????????????? | | ???# #???????????????????? | | ???# Y #???????????????????? | | ???# #???????????????????? | | ???# #???????????????????? | | ???## ##???????????????????? | | ????# #????????????????????? | | ????# #????????????????????? | | ????# #????????????????????? | | ????# #????????????????????? | | ????# #????????????????????? | | ????# #????????????????????? | | ????# #???????????#+#??????? | | ????# #???????????# #??????? | | ????# #???????????# #?????? | | ????# #???????????# #????? | | ????# #??????????## ##### | | ????# ############ | | ????# | | ????# ############ " | | ????# ############ %#####+# | | ????# # # #?????? | | ????# # """ """ =#%% #?????? | | ????# # """ """% +![ #?????? | +----------------------------------------------------+ Best States ------------- Heat Dissipation 42 Energy Generation 10 Energy Capacity 250 Matter Stores 300 Matter Capacity 300 Sight Range 16 Robot Scan Range 14 Terrain Scan Range 16 Terrain Scan Density 10 Armor Coverage 150 Evasion (%) 55 Targeting Accuracy 5 Item Schematics ----------------- None Robot Schematics ------------------ None Fabricated ------------ Nothing Alien Tech Used ----------------- None Achievements -------------- None Challenges ------------ None Game ------ Seed SpikedBiocellDetonator Manual? 0 Play Time 00:18:22 Cumulative 53.3 hours Start 2022.04.19 @ 17:38:19 End 2022.04.19 @ 17:52:22 Sessions 1 Manual Loads 0 Difficulty Rogue Special Mode None Game No. 71 Rogue 67 Adventurer 0 Explorer 4 Win Type - Total 0 Types 0/0/0/0/0/0/0/0/0 Lore% 17 Gallery% 31 Achievement% 27 Wizard Run 0 Options --------- ASCII 0 Keyboard 1 Movement Arrows Keybinds 0 Fullscreen 1 Font 24/Smallcaps Map View 113x50 Tactical HUD 1 Map Filters NONE Filters NONE Steam 1 RUN: 0186ffe3-5761-4f20-9cf5-fddb7f0e039b